[Event "*** SCC Grand Prix: Titled Tuesday Blitz"]
[Site "Chess.com"]
[Date "2020.09.29"]
[Round "3"]
[White "DenLaz"]
[Black "tdf98pantani"]
[Result "1-0"]
[WhiteElo "2812"]
[BlackElo "2623"]
[TimeControl "180+1"]
[EndTime "10:29:17 PDT"]
[Termination "DenLaz won by resignation"]

1. d4 {[%clk 0:02:59.8]} 1... d5 {[%clk 0:02:47.3]} 2. c4 {[%clk 0:02:57.9]}
2... c6 {[%clk 0:02:47.6]} 3. Nf3 {[%clk 0:02:57]} 3... Nf6 {[%clk 0:02:47.9]}
4. e3 {[%clk 0:02:52.4]} 4... Bf5 {[%clk 0:02:46.1]} 5. Nc3 {[%clk 0:02:51.2]}
5... e6 {[%clk 0:02:45.9]} 6. Nh4 {[%clk 0:02:51.1]} 6... Be4 {[%clk 0:02:45.3]}
7. f3 {[%clk 0:02:50.9]} 7... Bg6 {[%clk 0:02:45.3]} 8. Bd2 {[%clk 0:02:50.3]}
8... Nbd7 {[%clk 0:02:44.8]} 9. Qb3 {[%clk 0:02:50.5]} 9... Rb8 {[%clk
0:02:38.4]} 10. cxd5 {[%clk 0:02:42.7]} 10... exd5 {[%clk 0:02:37.8]} 11. Nxg6
{[%clk 0:02:40.2]} 11... hxg6 {[%clk 0:02:37.7]} 12. Bd3 {[%clk 0:02:40]} 12...
Bd6 {[%clk 0:02:35.1]} 13. O-O-O {[%clk 0:02:38.7]} 13... c5 {[%clk 0:02:13]}
14. dxc5 {[%clk 0:02:37.4]} 14... Nxc5 {[%clk 0:02:12.7]} 15. Bb5+ {[%clk
0:02:37.6]} 15... Kf8 {[%clk 0:02:12.5]} 16. Qc2 {[%clk 0:02:37.1]} 16... a6
{[%clk 0:02:10.1]} 17. Be2 {[%clk 0:02:36.2]} 17... Rc8 {[%clk 0:02:10.1]} 18.
Kb1 {[%clk 0:02:34.8]} 18... b5 {[%clk 0:02:09.1]} 19. Rc1 {[%clk 0:02:33.6]}
19... Kg8 {[%clk 0:01:20.7]} 20. h4 {[%clk 0:02:21]} 20... Ncd7 {[%clk
0:01:13.6]} 21. Qb3 {[%clk 0:02:05.1]} 21... Nb6 {[%clk 0:01:11.9]} 22. e4
{[%clk 0:01:43.4]} 22... dxe4 {[%clk 0:01:02.5]} 23. Bg5 {[%clk 0:01:39.9]}
23... Be7 {[%clk 0:00:55.9]} 24. Rhd1 {[%clk 0:01:31.8]} 24... Qe8 {[%clk
0:00:51.8]} 25. fxe4 {[%clk 0:01:28.7]} 25... Nc4 {[%clk 0:00:44.3]} 26. Bxc4
{[%clk 0:01:25.7]} 26... Rxc4 {[%clk 0:00:43.4]} 27. e5 {[%clk 0:00:37]} 27...
Ng4 {[%clk 0:00:42.6]} 28. e6 {[%clk 0:00:29.3]} 28... Bxg5 {[%clk 0:00:24.7]}
29. hxg5 {[%clk 0:00:25.8]} 29... Rh2 {[%clk 0:00:21.2]} 30. Re1 {[%clk
0:00:12.9]} 30... fxe6 {[%clk 0:00:20.3]} 31. Ne4 {[%clk 0:00:12.3]} 31... Qc6
{[%clk 0:00:19.5]} 32. Rxc4 {[%clk 0:00:11.6]} 32... bxc4 {[%clk 0:00:19.7]} 33.
Qg3 {[%clk 0:00:11.3]} 33... Rh1 {[%clk 0:00:17.2]} 34. Rxh1 {[%clk 0:00:09.9]}
34... Qxe4+ {[%clk 0:00:17.4]} 35. Kc1 {[%clk 0:00:04.5]} 35... e5 {[%clk
0:00:16.2]} 36. Re1 {[%clk 0:00:03.3]} 36... Qf5 {[%clk 0:00:14.5]} 37. Qf3
{[%clk 0:00:03.6]} 37... Qxg5+ {[%clk 0:00:14]} 38. Kb1 {[%clk 0:00:03.4]} 38...
Nf6 {[%clk 0:00:14.6]} 39. a3 {[%clk 0:00:03.2]} 39... e4 {[%clk 0:00:14.9]} 40.
Qc3 {[%clk 0:00:03.1]} 40... Qf5 {[%clk 0:00:14.8]} 41. Qxc4+ {[%clk 0:00:02.8]}
41... Kh7 {[%clk 0:00:15.3]} 42. Qc2 {[%clk 0:00:03.1]} 42... g5 {[%clk
0:00:15.3]} 43. Ka2 {[%clk 0:00:03.5]} 43... Kg6 {[%clk 0:00:15.6]} 44. Qb3
{[%clk 0:00:04.1]} 44... Qf2 {[%clk 0:00:14.6]} 45. Re3 {[%clk 0:00:04.1]} 45...
Qxg2 {[%clk 0:00:14.1]} 46. Rg3 {[%clk 0:00:04.5]} 46... Qf2 {[%clk 0:00:13.7]}
47. Qe3 {[%clk 0:00:03.8]} 47... Qf5 {[%clk 0:00:13.6]} 48. Rg1 {[%clk
0:00:02.6]} 48... Nd5 {[%clk 0:00:13.7]} 49. Qd4 {[%clk 0:00:03]} 49... Nf6
{[%clk 0:00:13.3]} 50. Re1 {[%clk 0:00:03.1]} 50... g4 {[%clk 0:00:13.7]} 51. a4
{[%clk 0:00:03.4]} 51... g3 {[%clk 0:00:14]} 52. Rg1 {[%clk 0:00:03.6]} 52...
Qf3 {[%clk 0:00:13.9]} 53. Qc3 {[%clk 0:00:03.7]} 53... Qxc3 {[%clk 0:00:12.6]}
54. bxc3 {[%clk 0:00:04.6]} 54... Nh5 {[%clk 0:00:13.1]} 55. Kb3 {[%clk
0:00:05.3]} 55... Kf5 {[%clk 0:00:13.6]} 56. c4 {[%clk 0:00:05.5]} 56... Ke5
{[%clk 0:00:14.1]} 57. Kc3 {[%clk 0:00:05.9]} 57... Kf4 {[%clk 0:00:12.3]} 58.
c5 {[%clk 0:00:05.7]} 58... Nf6 {[%clk 0:00:13]} 59. c6 {[%clk 0:00:05.8]} 59...
Kf3 {[%clk 0:00:13.2]} 60. Kd4 {[%clk 0:00:05.6]} 60... Kf2 {[%clk 0:00:12.8]}
61. c7 {[%clk 0:00:05.3]} 61... Kxg1 {[%clk 0:00:12]} 62. c8=Q {[%clk
0:00:05.7]} 62... g2 {[%clk 0:00:12.6]} 63. Ke3 {[%clk 0:00:04.9]} 63... Kh2
{[%clk 0:00:12.4]} 64. Qc7+ {[%clk 0:00:02.8]} 64... Kh3 {[%clk 0:00:12.2]} 65.
Kf2 {[%clk 0:00:03.1]} 65... e3+ {[%clk 0:00:11]} 66. Kg1 {[%clk 0:00:03.1]}
66... Ng4 {[%clk 0:00:11.5]} 67. Qf4 {[%clk 0:00:02.2]} 67... g5 {[%clk
0:00:10.5]} 68. Qe4 {[%clk 0:00:02.2]} 68... Kg3 {[%clk 0:00:11.4]} 69. Qxg2+
{[%clk 0:00:02.2]} 69... Kf4 {[%clk 0:00:11.5]} 70. Qe2 {[%clk 0:00:03.1]} 70...
Ne5 {[%clk 0:00:11.5]} 71. Kg2 {[%clk 0:00:03.8]} 71... g4 {[%clk 0:00:11.7]}
72. Qf1+ {[%clk 0:00:04.4]} 72... Nf3 {[%clk 0:00:12.2]} 73. Qc4+ {[%clk
0:00:04.3]} 73... Kg5 {[%clk 0:00:12.3]} 74. Kg3 {[%clk 0:00:04.6]} 74... Ne5
{[%clk 0:00:11.8]} 75. Qf4+ {[%clk 0:00:04.7]} 75... Kg6 {[%clk 0:00:11.9]} 76.
Qxe5 {[%clk 0:00:05.6]} 1-0

[Event "*** SCC Grand Prix: Titled Tuesday Blitz"]
[Site "Chess.com"]
[Date "2020.09.29"]
[Round "3"]
[White "anon481216"]
[Black "A-Fier"]
[Result "0-1"]
[WhiteElo "2445"]
[BlackElo "2848"]
[TimeControl "180+1"]
[EndTime "10:29:21 PDT"]
[Termination "A-Fier won by resignation"]

1. d4 {[%clk 0:03:00.9]} 1... Nf6 {[%clk 0:02:59.8]} 2. c4 {[%clk 0:03:00.7]}
2... c5 {[%clk 0:02:59.4]} 3. d5 {[%clk 0:03:00.6]} 3... e6 {[%clk 0:02:59.3]}
4. Nc3 {[%clk 0:03:00.1]} 4... exd5 {[%clk 0:02:59.9]} 5. cxd5 {[%clk
0:02:59.9]} 5... d6 {[%clk 0:03:00.8]} 6. Nf3 {[%clk 0:02:59.9]} 6... g6 {[%clk
0:03:01.1]} 7. h3 {[%clk 0:03:00.3]} 7... Bg7 {[%clk 0:03:01.6]} 8. e4 {[%clk
0:03:00.8]} 8... O-O {[%clk 0:03:02.2]} 9. Bd3 {[%clk 0:03:00.5]} 9... Re8
{[%clk 0:02:57.3]} 10. O-O {[%clk 0:02:59]} 10... c4 {[%clk 0:02:56.5]} 11. Bxc4
{[%clk 0:02:57.9]} 11... Nxe4 {[%clk 0:02:56.3]} 12. Nxe4 {[%clk 0:02:48.7]}
12... Rxe4 {[%clk 0:02:57.2]} 13. Bg5 {[%clk 0:02:48.9]} 13... Qf8 {[%clk
0:02:56]} 14. Qc2 {[%clk 0:02:44.5]} 14... Re8 {[%clk 0:02:49.5]} 15. Rae1
{[%clk 0:02:44]} 15... Bf5 {[%clk 0:02:28.9]} 16. Rxe8 {[%clk 0:02:42.4]} 16...
Qxe8 {[%clk 0:01:52.9]} 17. Qb3 {[%clk 0:02:40.6]} 17... Nd7 {[%clk 0:01:52.7]}
18. Qxb7 {[%clk 0:02:37.7]} 18... Nc5 {[%clk 0:01:52.6]} 19. Qc6 {[%clk
0:02:19.6]} 19... Bxb2 {[%clk 0:01:47.4]} 20. Qxd6 {[%clk 0:02:08]} 20... Ne4
{[%clk 0:01:47.5]} 21. Qf4 {[%clk 0:01:51.7]} 21... Nxg5 {[%clk 0:01:46]} 22.
Nxg5 {[%clk 0:01:48.7]} 22... Qe5 {[%clk 0:01:37.6]} 23. Qxe5 {[%clk 0:01:41.2]}
23... Bxe5 {[%clk 0:01:38.5]} 24. d6 {[%clk 0:01:26.4]} 24... Bxd6 {[%clk
0:01:25.9]} 25. Nxf7 {[%clk 0:01:25.7]} 25... Bc5 {[%clk 0:01:26.3]} 26. Nd6+
{[%clk 0:01:20]} 26... Kg7 {[%clk 0:01:25.6]} 27. Nxf5+ {[%clk 0:01:20.5]} 27...
gxf5 {[%clk 0:01:26.5]} 28. Rd1 {[%clk 0:01:20.2]} 28... Kf6 {[%clk 0:01:22.9]}
29. g3 {[%clk 0:01:19]} 29... f4 {[%clk 0:01:22]} 30. Kg2 {[%clk 0:01:18.9]}
30... fxg3 {[%clk 0:01:21.9]} 31. fxg3 {[%clk 0:01:19.2]} 31... Re8 {[%clk
0:01:18.4]} 32. Rd5 {[%clk 0:01:17.1]} 32... Bb6 {[%clk 0:01:17.8]} 33. Rh5
{[%clk 0:01:16.1]} 33... Re4 {[%clk 0:01:14.7]} 34. Bb3 {[%clk 0:01:11.9]} 34...
Re2+ {[%clk 0:01:14.7]} 35. Kf3 {[%clk 0:01:11.4]} 35... Rf2+ {[%clk 0:01:15.1]}
36. Kg4 {[%clk 0:01:09.5]} 36... Kg7 {[%clk 0:01:15.7]} 37. Rg5+ {[%clk
0:01:07.5]} 37... Kf6 {[%clk 0:01:13.7]} 38. Rd5 {[%clk 0:01:07.5]} 38... Re2
{[%clk 0:01:08.2]} 39. h4 {[%clk 0:01:04.1]} 39... Re3 {[%clk 0:01:05.6]} 40.
Rd7 {[%clk 0:01:01]} 40... h5+ {[%clk 0:01:05.1]} 41. Kxh5 {[%clk 0:00:56]}
41... Rxg3 {[%clk 0:01:05.3]} 42. Rf7+ {[%clk 0:00:56.3]} 42... Ke5 {[%clk
0:01:05]} 43. Re7+ {[%clk 0:00:49.5]} 43... Kf6 {[%clk 0:01:04.6]} 44. Re6+
{[%clk 0:00:49]} 44... Kf5 {[%clk 0:01:04.8]} 45. Re7 {[%clk 0:00:42.6]} 45...
Bd4 {[%clk 0:01:00.9]} 46. Rf7+ {[%clk 0:00:41.3]} 46... Bf6 {[%clk 0:01:00.5]}
47. Rxa7 {[%clk 0:00:38.5]} 47... Re3 {[%clk 0:00:48.4]} 48. Ra5+ {[%clk
0:00:37]} 48... Be5 {[%clk 0:00:48.1]} 49. Kh6 {[%clk 0:00:33.5]} 49... Rg3
{[%clk 0:00:44.1]} 50. h5 {[%clk 0:00:32.2]} 50... Kf4 {[%clk 0:00:44]} 51. Ra4+
{[%clk 0:00:28.6]} 51... Kf5 {[%clk 0:00:43.9]} 52. Ra6 {[%clk 0:00:25.6]} 52...
Rg2 {[%clk 0:00:38.5]} 53. Be6+ {[%clk 0:00:23.7]} 53... Ke4 {[%clk 0:00:36.4]}
54. Bf7 {[%clk 0:00:20.6]} 54... Bf4+ {[%clk 0:00:27.3]} 55. Kh7 {[%clk
0:00:20.6]} 55... Rh2 {[%clk 0:00:27.9]} 56. Bg6+ {[%clk 0:00:20.1]} 56... Ke5
{[%clk 0:00:26.6]} 57. a4 {[%clk 0:00:20.4]} 57... Rb2 {[%clk 0:00:24.7]} 58.
Ra7 {[%clk 0:00:20]} 58... Kf6 {[%clk 0:00:23.9]} 59. Rf7+ {[%clk 0:00:19.3]}
59... Kg5 {[%clk 0:00:23.3]} 60. a5 {[%clk 0:00:17.7]} 60... Ra2 {[%clk
0:00:21.5]} 61. Rf5+ {[%clk 0:00:17.3]} 61... Kg4 {[%clk 0:00:22]} 62. Rb5
{[%clk 0:00:16.9]} 62... Bd2 {[%clk 0:00:18.9]} 63. h6 {[%clk 0:00:16.2]} 63...
Rxa5 {[%clk 0:00:18.3]} 64. Rb7 {[%clk 0:00:09.5]} 64... Ra6 {[%clk 0:00:17.5]}
65. Kg7 {[%clk 0:00:08.2]} 65... Bc3+ {[%clk 0:00:17.3]} 66. Kh7 {[%clk
0:00:08.2]} 66... Bd2 {[%clk 0:00:16.8]} 67. Rf7 {[%clk 0:00:08.6]} 67... Rb6
{[%clk 0:00:13.2]} 68. Bf5+ {[%clk 0:00:08.9]} 68... Kg5 {[%clk 0:00:13.2]} 69.
Bd3 {[%clk 0:00:05.5]} 69... Rxh6+ {[%clk 0:00:12.9]} 70. Kg8 {[%clk 0:00:05.9]}
70... Bc3 {[%clk 0:00:13.8]} 71. Rh7 {[%clk 0:00:04.6]} 71... Rd6 {[%clk
0:00:13.8]} 72. Kf7 {[%clk 0:00:04.5]} 72... Rxd3 {[%clk 0:00:13.7]} 73. Ke6
{[%clk 0:00:04.7]} 73... Kf4 {[%clk 0:00:12.4]} 74. Rd7 {[%clk 0:00:04.9]} 74...
Rh3 {[%clk 0:00:11.4]} 75. Ke7 {[%clk 0:00:05.1]} 75... Ke5 {[%clk 0:00:11.4]}
76. Rc7 {[%clk 0:00:05.3]} 76... Rh7+ {[%clk 0:00:11.4]} 77. Kd8 {[%clk
0:00:05.3]} 77... Ba5 {[%clk 0:00:11.7]} 0-1

[Event "*** SCC Grand Prix: Titled Tuesday Blitz"]
[Site "Chess.com"]
[Date "2020.09.29"]
[Round "3"]
[White "Sethu0025"]
[Black "IMDT02"]
[Result "1-0"]
[WhiteElo "2773"]
[BlackElo "2544"]
[TimeControl "180+1"]
[EndTime "10:29:28 PDT"]
[Termination "Sethu0025 won by resignation"]

1. d4 {[%clk 0:03:00.9]} 1... Nf6 {[%clk 0:02:57.4]} 2. c4 {[%clk 0:03:00.9]}
2... e6 {[%clk 0:02:57.7]} 3. Nc3 {[%clk 0:03:01.5]} 3... Bb4 {[%clk 0:02:57.7]}
4. Nf3 {[%clk 0:03:02.1]} 4... O-O {[%clk 0:02:57.6]} 5. Bg5 {[%clk 0:03:01.9]}
5... d6 {[%clk 0:02:53]} 6. Qc2 {[%clk 0:02:58.9]} 6... Nbd7 {[%clk 0:02:52]} 7.
e3 {[%clk 0:02:57.5]} 7... h6 {[%clk 0:02:49.2]} 8. Bh4 {[%clk 0:02:57.1]} 8...
e5 {[%clk 0:02:47.2]} 9. dxe5 {[%clk 0:02:51.9]} 9... Nxe5 {[%clk 0:02:42.5]}
10. Nxe5 {[%clk 0:02:41.4]} 10... dxe5 {[%clk 0:02:43.4]} 11. Be2 {[%clk
0:02:36.9]} 11... Be7 {[%clk 0:02:37.7]} 12. Rd1 {[%clk 0:02:32.1]} 12... Qe8
{[%clk 0:02:35.8]} 13. O-O {[%clk 0:01:58.1]} 13... c6 {[%clk 0:02:36.1]} 14.
Bg3 {[%clk 0:01:54.6]} 14... Bb4 {[%clk 0:02:12.8]} 15. a3 {[%clk 0:01:49.6]}
15... Ba5 {[%clk 0:02:10.3]} 16. b4 {[%clk 0:01:37.2]} 16... Bc7 {[%clk
0:02:09]} 17. c5 {[%clk 0:01:37.5]} 17... Be6 {[%clk 0:02:06.5]} 18. Bh4 {[%clk
0:01:35.6]} 18... Nd5 {[%clk 0:01:59.2]} 19. Nxd5 {[%clk 0:01:33.5]} 19... Bxd5
{[%clk 0:01:54.2]} 20. e4 {[%clk 0:01:32.8]} 20... Be6 {[%clk 0:01:53.1]} 21.
Rd2 {[%clk 0:01:28.3]} 21... f5 {[%clk 0:01:38.5]} 22. exf5 {[%clk 0:01:26.1]}
22... Bxf5 {[%clk 0:01:39.4]} 23. Qc3 {[%clk 0:01:20.4]} 23... e4 {[%clk
0:01:32.1]} 24. Bg3 {[%clk 0:01:13.2]} 24... Bxg3 {[%clk 0:01:25]} 25. hxg3
{[%clk 0:01:14.1]} 25... Rd8 {[%clk 0:01:14.9]} 26. Rfd1 {[%clk 0:01:14]} 26...
Rxd2 {[%clk 0:01:11.6]} 27. Qxd2 {[%clk 0:01:10.7]} 27... Qe5 {[%clk 0:01:01.1]}
28. Qd4 {[%clk 0:01:04.3]} 28... Re8 {[%clk 0:00:59.8]} 29. Bc4+ {[%clk
0:00:58.9]} 29... Kh7 {[%clk 0:00:59.2]} 30. Qxe5 {[%clk 0:00:55.3]} 30... Rxe5
{[%clk 0:01:00.1]} 31. Kf1 {[%clk 0:00:55.7]} 31... e3 {[%clk 0:00:48.1]} 32. f3
{[%clk 0:00:55.1]} 32... b6 {[%clk 0:00:42.5]} 33. cxb6 {[%clk 0:00:52.6]} 33...
axb6 {[%clk 0:00:43.4]} 34. Ke2 {[%clk 0:00:52.6]} 34... c5 {[%clk 0:00:34.1]}
35. b5 {[%clk 0:00:49.1]} 35... Re7 {[%clk 0:00:24.4]} 36. Rd6 {[%clk
0:00:47.7]} 36... Ra7 {[%clk 0:00:22.5]} 37. Kxe3 {[%clk 0:00:39.6]} 37... Rxa3+
{[%clk 0:00:22.6]} 38. Kf4 {[%clk 0:00:40.1]} 38... Bc2 {[%clk 0:00:17.8]} 39.
Ke5 {[%clk 0:00:37.2]} 39... Rc3 {[%clk 0:00:15.5]} 40. Bd5 {[%clk 0:00:32.8]}
40... Re3+ {[%clk 0:00:11.4]} 41. Kf4 {[%clk 0:00:27.4]} 41... Re2 {[%clk
0:00:11.6]} 42. g4 {[%clk 0:00:26.7]} 42... Rxg2 {[%clk 0:00:11.5]} 43. Rxb6
{[%clk 0:00:26.2]} 43... Rd2 {[%clk 0:00:11.1]} 44. Be6 {[%clk 0:00:19.2]} 44...
Re2 {[%clk 0:00:08.1]} 45. Rc6 {[%clk 0:00:16.3]} 45... Bd3 {[%clk 0:00:06.7]}
46. Bf5+ {[%clk 0:00:14.8]} 46... Bxf5 {[%clk 0:00:06.4]} 47. Kxf5 {[%clk
0:00:15.2]} 47... Re3 {[%clk 0:00:05]} 48. Rxc5 {[%clk 0:00:12.3]} 48... Rxf3+
{[%clk 0:00:05.4]} 49. Ke4 {[%clk 0:00:12.7]} 49... Rb3 {[%clk 0:00:06]} 50. Kf4
{[%clk 0:00:12.8]} 50... Rb4+ {[%clk 0:00:06.3]} 51. Kg3 {[%clk 0:00:12.8]}
51... Kg6 {[%clk 0:00:06.4]} 52. Rc6+ {[%clk 0:00:11.5]} 52... Kg5 {[%clk
0:00:06.8]} 53. Rc5+ {[%clk 0:00:12.4]} 53... Kg6 {[%clk 0:00:06.8]} 54. Kf3
{[%clk 0:00:12.9]} 54... Kf6 {[%clk 0:00:07.3]} 55. Rf5+ {[%clk 0:00:12.2]}
55... Kg6 {[%clk 0:00:07.5]} 56. Rd5 {[%clk 0:00:12]} 56... Kf6 {[%clk
0:00:07.7]} 57. Kg3 {[%clk 0:00:12.7]} 57... Kg6 {[%clk 0:00:08]} 58. Rd6+
{[%clk 0:00:12.5]} 58... Kg5 {[%clk 0:00:08.2]} 59. Rd5+ {[%clk 0:00:13.4]}
59... Kg6 {[%clk 0:00:08.7]} 60. Kf3 {[%clk 0:00:13.9]} 60... Kf6 {[%clk
0:00:09]} 61. Rc5 {[%clk 0:00:13.2]} 61... Kg6 {[%clk 0:00:09.2]} 62. Rc6+
{[%clk 0:00:13.4]} 62... Kg5 {[%clk 0:00:09.4]} 63. Rc5+ {[%clk 0:00:13.3]}
63... Kg6 {[%clk 0:00:09.7]} 64. Kg3 {[%clk 0:00:12.9]} 64... Kf6 {[%clk
0:00:10.1]} 65. Kh4 {[%clk 0:00:12.6]} 65... Kg6 {[%clk 0:00:10.3]} 66. Rc6+
{[%clk 0:00:12.9]} 66... Kf7 {[%clk 0:00:10.4]} 67. b6 {[%clk 0:00:13.2]} 67...
Kg8 {[%clk 0:00:10.4]} 68. Kh5 {[%clk 0:00:12.6]} 68... Kh7 {[%clk 0:00:10.2]}
69. Kh4 {[%clk 0:00:12.9]} 69... Rb5 {[%clk 0:00:10.1]} 70. Kg3 {[%clk
0:00:12.7]} 70... Kg8 {[%clk 0:00:09.6]} 71. Rc8+ {[%clk 0:00:12.3]} 71... Kf7
{[%clk 0:00:10.5]} 72. Rc7+ {[%clk 0:00:11.4]} 72... Kg6 {[%clk 0:00:10.9]} 73.
b7 {[%clk 0:00:11.7]} 73... Kg5 {[%clk 0:00:10.1]} 74. Rxg7+ {[%clk 0:00:11.2]}
74... Kf6 {[%clk 0:00:09.9]} 75. Rc7 {[%clk 0:00:10.7]} 75... Ke6 {[%clk
0:00:10.2]} 76. Rh7 {[%clk 0:00:10.5]} 76... Ke5 {[%clk 0:00:07.8]} 77. Kh4
{[%clk 0:00:09.4]} 77... Kf4 {[%clk 0:00:08.2]} 78. Rf7+ {[%clk 0:00:09]} 78...
Ke5 {[%clk 0:00:07.9]} 79. Rf5+ {[%clk 0:00:09.1]} 1-0

[Event "*** SCC Grand Prix: Titled Tuesday Blitz"]
[Site "Chess.com"]
[Date "2020.09.29"]
[Round "3"]
[White "Grieve72"]
[Black "DrMamaliga"]
[Result "1-0"]
[WhiteElo "2458"]
[BlackElo "2285"]
[TimeControl "180+1"]
[EndTime "10:29:31 PDT"]
[Termination "Grieve72 won on time"]

1. e4 {[%clk 0:03:00.9]} 1... e5 {[%clk 0:03:00.3]} 2. Nf3 {[%clk 0:03:01]} 2...
Nc6 {[%clk 0:03:00.7]} 3. Bb5 {[%clk 0:03:00]} 3... a6 {[%clk 0:03:00.8]} 4. Ba4
{[%clk 0:03:00.3]} 4... d6 {[%clk 0:03:00.7]} 5. c3 {[%clk 0:02:58.8]} 5... f5
{[%clk 0:02:59.9]} 6. exf5 {[%clk 0:02:58.6]} 6... Bxf5 {[%clk 0:03:00.8]} 7.
O-O {[%clk 0:02:59]} 7... Bd3 {[%clk 0:03:00.4]} 8. Re1 {[%clk 0:02:59.2]} 8...
Be7 {[%clk 0:03:01.1]} 9. Re3 {[%clk 0:02:58.6]} 9... e4 {[%clk 0:03:01.2]} 10.
Na3 {[%clk 0:02:59]} 10... Nf6 {[%clk 0:02:45.6]} 11. Ne1 {[%clk 0:02:59]} 11...
O-O {[%clk 0:02:39]} 12. Nxd3 {[%clk 0:02:57.5]} 12... exd3 {[%clk 0:02:39.9]}
13. Bxc6 {[%clk 0:02:57.9]} 13... bxc6 {[%clk 0:02:38.6]} 14. Rxd3 {[%clk
0:02:58.5]} 14... Nd5 {[%clk 0:02:36.8]} 15. Rf3 {[%clk 0:02:50.7]} 15... Qd7
{[%clk 0:02:34.7]} 16. d4 {[%clk 0:02:40.3]} 16... Bh4 {[%clk 0:02:30.3]} 17. g3
{[%clk 0:02:35]} 17... Qh3 {[%clk 0:02:24.2]} 18. Nc2 {[%clk 0:02:06.9]} 18...
Be7 {[%clk 0:02:06.1]} 19. c4 {[%clk 0:02:00.3]} 19... Nf6 {[%clk 0:02:05]} 20.
Qf1 {[%clk 0:01:40.9]} 20... Qxf1+ {[%clk 0:01:54.3]} 21. Kxf1 {[%clk
0:01:40.8]} 21... Ng4 {[%clk 0:01:55.2]} 22. Rxf8+ {[%clk 0:01:29.3]} 22... Rxf8
{[%clk 0:01:56.1]} 23. Bf4 {[%clk 0:01:21.5]} 23... Nxh2+ {[%clk 0:01:51.9]} 24.
Kg2 {[%clk 0:01:21.5]} 24... Ng4 {[%clk 0:01:52.8]} 25. Re1 {[%clk 0:01:19.2]}
25... Bd8 {[%clk 0:01:51.1]} 26. Nb4 {[%clk 0:01:13.5]} 26... Nxf2 {[%clk
0:01:36.3]} 27. Kxf2 {[%clk 0:00:58.3]} 27... g5 {[%clk 0:01:36.4]} 28. Nxa6
{[%clk 0:00:43.9]} 28... gxf4 {[%clk 0:01:35.2]} 29. Nb4 {[%clk 0:00:42.9]}
29... fxg3+ {[%clk 0:01:23.6]} 30. Kxg3 {[%clk 0:00:43.8]} 30... c5 {[%clk
0:01:18.6]} 31. dxc5 {[%clk 0:00:43.4]} 31... dxc5 {[%clk 0:01:19.5]} 32. Nd5
{[%clk 0:00:40.7]} 32... c6 {[%clk 0:01:17.5]} 33. Nc3 {[%clk 0:00:37.9]} 33...
Bf6 {[%clk 0:01:13.1]} 34. Re3 {[%clk 0:00:28]} 34... Bd4 {[%clk 0:01:06.2]} 35.
Rd3 {[%clk 0:00:21.7]} 35... Rb8 {[%clk 0:00:52.1]} 36. b3 {[%clk 0:00:21.5]}
36... Rf8 {[%clk 0:00:45.2]} 37. Ne2 {[%clk 0:00:20]} 37... Be5+ {[%clk
0:00:41.9]} 38. Kg2 {[%clk 0:00:19.4]} 38... Ra8 {[%clk 0:00:38.5]} 39. a4
{[%clk 0:00:19.6]} 39... Rb8 {[%clk 0:00:36]} 40. Kf3 {[%clk 0:00:19.5]} 40...
Kf7 {[%clk 0:00:33.6]} 41. Ke4 {[%clk 0:00:18.5]} 41... Ke6 {[%clk 0:00:32.7]}
42. Rh3 {[%clk 0:00:18.6]} 42... h5 {[%clk 0:00:28.7]} 43. Rxh5 {[%clk
0:00:17.7]} 43... Bd6 {[%clk 0:00:25.2]} 44. Rh6+ {[%clk 0:00:17.8]} 44... Kd7
{[%clk 0:00:23.6]} 45. Rh3 {[%clk 0:00:18.7]} 45... Ke6 {[%clk 0:00:22.1]} 46.
Nf4+ {[%clk 0:00:15.9]} 46... Bxf4 {[%clk 0:00:20]} 47. Kxf4 {[%clk 0:00:16.8]}
47... Rg8 {[%clk 0:00:15.6]} 48. Rh5 {[%clk 0:00:15.1]} 48... Kd6 {[%clk
0:00:13.7]} 49. Rh6+ {[%clk 0:00:15.2]} 49... Kc7 {[%clk 0:00:13.4]} 50. Rh3
{[%clk 0:00:11.4]} 50... Kb6 {[%clk 0:00:11.5]} 51. Ke5 {[%clk 0:00:11.7]} 51...
Rd8 {[%clk 0:00:10.8]} 52. Rh7 {[%clk 0:00:06.9]} 52... Rd3 {[%clk 0:00:09]} 53.
Rh8 {[%clk 0:00:07.2]} 53... Ka5 {[%clk 0:00:04.8]} 54. Rb8 {[%clk 0:00:06.2]}
54... Rd4 {[%clk 0:00:02.7]} 55. Ke6 {[%clk 0:00:06.1]} 55... Rd3 {[%clk
0:00:02.1]} 56. Rb7 {[%clk 0:00:06.1]} 56... Rd4 {[%clk 0:00:02.2]} 57. Rb8
{[%clk 0:00:05.4]} 57... Rd3 {[%clk 0:00:02.5]} 58. Kf5 {[%clk 0:00:05.5]} 58...
Rd4 {[%clk 0:00:02.8]} 59. Ke5 {[%clk 0:00:05.5]} 59... Ka6 {[%clk 0:00:03.3]}
60. Rc8 {[%clk 0:00:02.2]} 60... Kb6 {[%clk 0:00:02.7]} 61. Ke6 {[%clk
0:00:01.5]} 61... Rd3 {[%clk 0:00:02.8]} 62. Rb8+ {[%clk 0:00:01.9]} 62... Ka7
{[%clk 0:00:02.9]} 63. Rc8 {[%clk 0:00:01.6]} 63... Kb7 {[%clk 0:00:03.4]} 64.
Re8 {[%clk 0:00:02]} 64... Rxb3 {[%clk 0:00:03.7]} 65. Kd6 {[%clk 0:00:02.5]}
65... Rd3+ {[%clk 0:00:02.8]} 66. Kxc5 {[%clk 0:00:02.7]} 66... Ra3 {[%clk
0:00:02.4]} 67. Re7+ {[%clk 0:00:03.2]} 67... Ka6 {[%clk 0:00:02.5]} 68. Kxc6
{[%clk 0:00:03.7]} 68... Rxa4 {[%clk 0:00:02.7]} 69. c5 {[%clk 0:00:04.3]} 69...
Rh4 {[%clk 0:00:02.7]} 70. Kc7 {[%clk 0:00:03.2]} 70... Kb5 {[%clk 0:00:02.8]}
71. c6 {[%clk 0:00:03.6]} 71... Rh6 {[%clk 0:00:01.6]} 72. Re5+ {[%clk 0:00:02]}
72... Ka6 {[%clk 0:00:02.2]} 73. Kd7 {[%clk 0:00:01.6]} 73... Rh7+ {[%clk
0:00:01.9]} 74. Re7 {[%clk 0:00:02.1]} 74... Rh6 {[%clk 0:00:02.4]} 75. c7
{[%clk 0:00:02.5]} 75... Rh2 {[%clk 0:00:02.1]} 76. c8=Q+ {[%clk 0:00:02.9]} 1-0